bitfinex-derivatives/quotes_SOLF0:USTF0_20240910
["timestamp","ask_amount","ask_price","bid_price","bid_amount"]
[1725987959623,17.8,134.86,134.76,4.0166]
[1725987960128,3.7081,134.83,134.77,17.8]
[1725987960515,17.8,134.87,134.77,17.8]
[1725987960916,11.13139542,134.89,134.79,17.8]
[1725987962021,11.13139542,134.89,134.82,17.8]
[1725987962222,7.435,134.9,134.83,1.3609]
[1725987962423,3.73459755,134.89,134.83,1.3609]
[1725987963228,7.435,134.9,134.83,1.3609]
[1725987963418,7.435,134.9,134.83,3.9658]
[1725987963725,7.435,134.9,134.84,17.8]
[1725987965722,7.435,134.9,134.83,3.9658]
[1725987966123,3.7072,134.87,134.83,3.9658]
[1725987967227,3.7735569,134.88,134.83,3.9658]
[1725987967228,3.7735569,134.88,134.83,1.3609]
[1725987967415,25.235,134.9,134.83,1.3609]
[1725987967619,3.7075,134.86,134.83,1.3609]
[1725987968015,3.68081317,134.87,134.83,1.3609]
[1725987968324,7.435,134.9,134.83,1.3609]
[1725987974435,17.8,134.87,134.8,1.3168]
[1725987974732,21.59952515,134.87,134.8,1.3168]
[1725987975531,21.59952515,134.87,134.77,17.8]
[1725987975836,2.7031,134.86,134.77,17.8]
[1725987978435,1.3908,134.86,134.77,17.8]
[1725987979440,3.79952515,134.87,134.83,3.708]
[1725987979638,7.435,134.89,134.83,3.708]
[1725987979845,11.07980395,134.89,134.83,3.708]
[1725987980144,11.07980395,134.89,134.8,2.7473]
[1725987980640,11.07980395,134.89,134.8,4.1128]
[1725987980838,11.07980395,134.89,134.84,3.7078]
[1725987983533,11.07980395,134.89,134.8,4.1128]
[1725987984442,11.07980395,134.89,134.81,17.8]
[1725987985850,7.435,134.89,134.83,17.8]
[1725987986051,11.11052467,134.89,134.83,17.8]
[1725987986535,7.435,134.89,134.83,17.8]
[1725987987143,1.2679,134.9,134.83,17.8]
[1725987990548,157.11903512,134.92,134.83,17.8]
[1725987990753,157.11903512,134.92,134.85,17.8]
[1725987990957,157.11903512,134.92,134.86,2.6521]
[1725987991151,157.11903512,134.92,134.88,3.7066]
[1725987991446,157.11903512,134.92,134.86,3.9797]
[1725987992651,157.11903512,134.92,134.87,3.7069]
[1725987993755,157.11903512,134.92,134.88,3.7067]
[1725987996151,157.11903512,134.92,134.86,3.9797]
[1725987996551,157.11903512,134.92,134.88,3.7067]
[1725987996949,157.11903512,134.92,134.89,3.7064]
[1725987997352,157.11903512,134.92,134.86,3.9797]
[1725987998058,157.11903512,134.92,134.88,3.7066]
[1725987999050,11.39,134.91,134.86,1.3031]
[1725987999448,11.39,134.91,134.86,12.6931]
[1725988001761,157.11903512,134.92,134.86,12.6931]
[1725988002160,157.11903512,134.92,134.87,11.39]
[1725988005961,168.50903512,134.92,134.86,12.6931]
[1725988006260,11.39,134.91,134.86,1.3031]
[1725988008267,11.39,134.91,134.85,11.39]
[1725988011359,11.39,134.9,134.82,3.8927]
[1725988011557,20.139,134.9,134.82,15.2827]
[1725988012267,3.7071,134.87,134.82,15.2827]
[1725988014566,3.7071,134.87,134.84,11.39]
[1725988014764,20.139,134.9,134.84,11.39]
[1725988015163,3.75648734,134.89,134.84,11.39]
[1725988015365,15.0,134.84,134.56,224.0]
[1725988015667,11.39,134.78,134.72,11.39]
[1725988015871,3.7111,134.73,134.7,11.39]
[1725988016062,15.04188288,134.77,134.7,11.39]
[1725988016361,3.7104,134.75,134.72,11.39]
[1725988016969,3.7106,134.74,134.72,11.39]
[1725988017263,16.39,134.78,134.72,11.39]
[1725988017462,16.39,134.78,134.71,11.39]
[1725988017660,5.0,134.78,134.73,11.39]
[1725988018061,3.7103,134.76,134.71,17.83]
[1725988018666,3.7103,134.75,134.71,17.83]
[1725988019367,3.7102,134.76,134.71,17.83]
[1725988019667,3.7102,134.76,134.72,1.3124]
[1725988020267,5.0,134.78,134.72,1.3124]
[1725988020671,26.60021204,134.79,134.72,1.3124]
[1725988021871,3.7108,134.74,134.72,1.3124]
[1725988023367,17.83,134.77,134.72,1.3124]
[1725988023567,17.83,134.77,134.67,20.5057]
[1725988023768,17.83,134.77,134.68,1.2778]
[1725988024872,17.83,134.77,134.7,3.7115]
[1725988025078,17.83,134.77,134.68,1.2778]
[1725988025767,17.83,134.77,134.7,3.7116]
[1725988026571,22.83,134.77,134.7,3.7116]
[1725988027372,22.83,134.77,134.68,1.2778]
[1725988027373,17.83,134.75,134.69,3.7119]
[1725988027774,17.83,134.75,134.68,1.2778]
[1725988028470,22.83,134.75,134.68,1.2778]
[1725988028674,17.83,134.73,134.63,1.2686]
[1725988028877,3.70293353,134.72,134.65,3.7129]
[1725988029468,3.70293353,134.72,134.63,4.98824352]
[1725988030469,17.83,134.71,134.63,1.2686]
[1725988030865,19.1183,134.71,134.6,20.4656]
[1725988031575,19.1183,134.71,134.62,17.83]
[1725988033974,19.1183,134.71,134.65,3.7129]
[1725988034579,19.1183,134.71,134.66,3.7128]
[1725988035278,5.0,134.72,134.68,3.7123]
[1725988035473,5.0,134.72,134.64,17.83]
[1725988035875,5.0,134.72,134.65,1.2664]
[1725988036279,5.0,134.72,134.69,3.7119]
[1725988036480,5.0,134.72,134.65,1.2664]
[1725988036978,5.0,134.72,134.68,3.7121]
[1725988037874,5.0,134.72,134.69,3.712]
[1725988039481,5.0,134.72,134.65,1.2664]
[1725988039482,5.0,134.72,134.7,3.7117]
[1725988039982,5.0,134.72,134.65,2.5921]
[1725988040282,5.0,134.72,134.69,3.7119]
[1725988041081,5.0,134.72,134.7,3.7117]
[1725988041678,22.83,134.73,134.7,3.7117]
[1725988041883,22.83,134.73,134.71,3.7114]
[1725988042880,22.83,134.73,134.66,17.83]
[1725988042881,5.0,134.73,134.66,17.83]
[1725988044087,5.0,134.73,134.72,3.7112]
[1725988046682,5.0,134.73,134.71,3.7114]
[1725988047490,22.83,134.73,134.65,2.5921]
[1725988047896,22.83,134.73,134.7,3.7115]
[1725988048277,5.0,134.73,134.7,3.7115]
[1725988048478,5.0,134.73,134.71,3.7114]
[1725988049779,5.0,134.73,134.72,3.7112]
[1725988053690,5.0,134.75,134.73,3.7107]
[1725988054692,5.0,134.75,134.68,1.2758]
[1725988055694,5.0,134.75,134.72,3.7112]
[1725988056593,5.0,134.75,134.68,1.2758]
[1725988056594,5.0,134.75,134.73,3.7109]
[1725988056794,5.0,134.75,134.68,1.2758]
[1725988056995,5.0,134.75,134.72,3.711]
[1725988057299,5.0,134.75,134.68,1.2758]
[1725988058196,5.0,134.75,134.73,3.7109]
[1725988058692,5.0,134.75,134.74,3.7106]
[1725988059692,5.0,134.75,134.7,2.6529]
[1725988060003,16.41,134.75,134.7,2.6529]
[1725988060305,16.41,134.75,134.71,3.7113]
[1725988060602,16.41,134.75,134.7,1.3143]
[1725988060803,16.41,134.75,134.71,3.7112]
[1725988061193,16.41,134.75,134.7,1.3143]
[1725988061399,16.41,134.75,134.72,3.7111]
[1725988064208,5.0,134.75,134.7,12.7243]
[1725988064816,5.0,134.75,134.74,3.7106]
[1725988069818,5.0,134.75,134.73,3.7107]
[1725988070222,5.0,134.75,134.7,12.7243]
[1725988070413,5.0,134.75,134.74,3.7106]
[1725988072823,16.41,134.75,134.7,1.3143]
[1725988073417,15.41,134.75,134.73,3.7107]
[1725988073824,15.41,134.75,134.72,3.7111]
[1725988075514,15.41,134.75,134.73,3.7109]
[1725988077218,4.0,134.75,134.74,3.7106]
[1725988077418,15.41,134.75,134.74,3.7106]
[1725988078221,15.41,134.75,134.73,3.7107]
[1725988080626,0.2893,134.73,134.7,1.3143]
[1725988082323,0.2893,134.73,134.72,3.7112]
[1725988086527,11.41,134.77,134.74,3.7104]
[1725988090228,11.41,134.77,134.75,3.7103]
[1725988092929,11.41,134.77,134.74,3.7105]
[1725988095029,11.41,134.77,134.75,3.7103]
[1725988099534,11.41,134.76,134.7,1.3143]
[1725988099731,11.41,134.73,134.68,1.2758]
[1725988100235,11.41,134.72,134.69,3.7119]
[1725988100629,11.41,134.71,134.68,3.7122]
[1725988101630,11.41,134.71,134.67,1.3386]
[1725988101831,17.09780061,134.81,134.67,12.7486]
[1725988102037,11.41,134.74,134.69,3.7118]
[1725988102333,11.41,134.72,134.67,1.3386]
[1725988103128,11.41,134.72,134.68,3.7122]
[1725988106639,11.41,134.72,134.65,14.1427]
[1725988107839,11.41,134.72,134.68,3.7122]
[1725988109041,11.41,134.72,134.65,14.1427]
[1725988109227,11.41,134.69,134.65,1.3513]
[1725988109634,11.41,134.68,134.65,3.713]
[1725988110535,11.41,134.68,134.66,3.7128]
[1725988111650,11.41,134.68,134.61,15.4556]
[1725988111651,11.41,134.68,134.67,3.7125]
[1725988111940,11.41,134.68,134.61,4.0456]
[1725988112142,11.41,134.68,134.62,11.41]
[1725988112440,11.41,134.68,134.66,3.7127]
[1725988116245,11.41,134.67,134.61,4.0456]
[1725988116744,11.41,134.65,134.61,4.0456]
[1725988118341,11.41,134.65,134.63,3.7135]
[1725988119148,11.41,134.65,134.62,3.7138]
[1725988119341,11.41,134.65,134.61,4.0456]
[1725988119946,11.41,134.65,134.63,3.7135]
[1725988120439,11.41,134.65,134.63,3.7134]
[1725988121939,11.41,134.65,134.62,3.7138]
[1725988122544,11.41,134.65,134.63,3.7135]
[1725988122853,3.64602573,134.7,134.63,3.7135]
[1725988123147,11.41,134.65,134.63,3.7135]
[1725988124148,3.76021697,134.68,134.64,3.7134]
[1725988124336,11.41,134.65,134.64,3.7134]
[1725988124848,3.8467,134.72,134.65,3.7131]
[1725988125051,11.41,134.67,134.65,3.7131]
[1725988125446,7.6399828,134.72,134.61,11.41]
[1725988125640,24.5412984,134.79,134.64,11.41]
[1725988125846,11.41,134.71,134.65,1.3863]
[1725988126050,11.41,134.71,134.69,3.7118]
[1725988126449,3.9466,134.78,134.65,1.3863]
[1725988126658,11.41,134.73,134.66,11.41]
[1725988126844,11.41,134.73,134.67,2.7454]
[1725988127244,11.41,134.74,134.67,14.1554]
[1725988127646,11.41,134.74,134.71,3.7112]
[1725988128150,11.41,134.74,134.67,14.1554]
[1725988128151,3.9466,134.78,134.72,3.711]
[1725988128355,11.41,134.74,134.72,3.711]
[1725988128745,11.41,134.74,134.71,3.7113]
[1725988131154,11.41,134.73,134.71,3.7113]
[1725988131848,11.41,134.73,134.72,3.7112]
[1725988132049,11.41,134.75,134.72,3.7112]
[1725988133956,11.41,134.73,134.67,2.7454]
[1725988134168,11.41,134.73,134.67,14.1554]
[1725988135256,11.41,134.73,134.72,3.7112]
[1725988137451,11.41,134.73,134.71,3.7112]
[1725988139550,11.41,134.73,134.72,3.7112]
[1725988141755,11.41,134.75,134.69,11.41]
[1725988141959,7.435,134.81,134.7,12.7851]
[1725988142149,11.41,134.78,134.7,12.7851]
[1725988142354,11.41,134.78,134.72,11.41]
[1725988143050,11.41,134.77,134.74,3.7104]
[1725988143253,11.41,134.77,134.71,11.41]
[1725988143451,11.41,134.77,134.71,3.7113]
[1725988143658,11.41,134.75,134.7,1.3751]
[1725988144769,11.41,134.75,134.72,3.711]
[1725988145665,11.41,134.75,134.71,3.7113]
[1725988145956,11.41,134.74,134.71,3.7113]
[1725988146362,11.41,134.74,134.72,3.7111]
[1725988146764,11.41,134.74,134.7,1.3751]
[1725988146968,11.41,134.75,134.7,1.3751]
[1725988147262,11.41,134.75,134.7,12.7851]
[1725988147657,11.41,134.75,134.73,3.7107]
[1725988148259,11.41,134.77,134.7,12.7851]
[1725988149753,11.41,134.77,134.72,3.7111]
[1725988149956,11.41,134.77,134.7,12.7851]
[1725988150565,11.41,134.77,134.73,3.7108]
[1725988152072,11.41,134.75,134.72,3.711]
[1725988152769,11.41,134.74,134.71,3.7113]
[1725988152966,11.41,134.74,134.7,1.3751]
[1725988153167,11.41,134.75,134.72,3.711]
[1725988153470,11.41,134.75,134.7,1.3751]
[1725988153669,11.41,134.75,134.73,3.7107]
[1725988153970,11.41,134.76,134.7,12.7851]
[1725988155164,11.41,134.76,134.74,3.7105]
[1725988156168,7.435,134.81,134.74,3.7105]
[1725988156374,11.41,134.78,134.74,3.7105]
[1725988156573,7.435,134.81,134.74,11.41]
[1725988156772,18.845,134.81,134.74,11.41]
[1725988157273,11.41,134.81,134.75,11.41]
[1725988157475,225.0,134.91,134.78,11.41]
[1725988157669,11.41,134.86,134.79,11.41]
[1725988158373,11.41,134.86,134.81,3.7087]
[1725988158575,11.41,134.84,134.81,3.7087]
[1725988160273,11.41,134.84,134.82,3.7083]
[1725988160570,11.41,134.86,134.83,3.7079]
[1725988161181,11.41,134.86,134.8,11.41]
[1725988162061,11.41,134.86,134.83,3.7081]
[1725988165380,11.41,134.86,134.82,3.7083]
[1725988167983,11.41,134.86,134.83,3.7081]
[1725988169684,11.41,134.86,134.81,3.7086]
[1725988169877,11.41,134.86,134.8,11.41]
[1725988170777,15.08403724,134.87,134.8,11.41]
[1725988170977,11.41,134.87,134.8,11.41]
[1725988171180,11.41,134.86,134.79,15.4637]
[1725988171583,15.02987986,134.86,134.79,15.4637]
[1725988171785,15.02987986,134.86,134.82,3.7082]
[1725988173187,15.02987986,134.86,134.83,3.7081]
[1725988173682,11.41,134.86,134.83,3.7081]
[1725988180786,11.41,134.86,134.79,4.0537]
[1725988181084,11.41,134.86,134.29,8.25338721]
[1725988181085,11.41,134.81,134.73,2.5743]
[1725988181288,11.41,134.81,134.74,11.41]
[1725988181687,15.1189,134.81,134.74,11.41]
[1725988184693,11.41,134.81,134.75,11.41]
[1725988184896,15.1184,134.82,134.75,11.41]
[1725988185498,11.41,134.82,134.77,11.41]
[1725988185792,11.41,134.84,134.78,11.41]
[1725988189295,15.1179,134.84,134.78,11.41]
[1725988189804,15.1177,134.85,134.79,11.41]
[1725988190705,11.41,134.87,134.79,11.41]
[1725988191298,15.05378478,134.87,134.79,11.41]
[1725988191694,3.7076,134.85,134.79,11.41]
[1725988197210,3.7079,134.84,134.79,11.41]
[1725988197506,236.05341207,134.96,134.83,11.41]
[1725988197699,11.41,134.91,134.85,11.41]
[1725988198105,15.08950734,134.9,134.84,11.41]
[1725988198297,11.41,134.9,134.84,11.41]
[1725988199010,11.41,134.9,134.86,3.7072]
[1725988199210,11.41,134.9,134.84,11.41]
[1725988199601,11.3692,134.95,134.85,11.41]
[1725988199802,11.41,134.93,134.86,11.41]
[1725988200008,11.3692,134.95,134.86,11.41]
[1725988200210,11.41,134.93,134.86,11.41]
[1725988200411,21.469,134.95,134.88,11.41]
[1725988200715,20.1022,134.95,134.91,3.7059]
[1725988201107,20.1022,134.95,134.88,11.41]
[1725988201306,20.1022,134.95,134.9,3.7061]
[1725988201506,20.1022,134.95,134.88,11.41]
[1725988201917,11.41,134.95,134.89,11.41]
[1725988202414,11.41,134.95,134.91,3.7058]
[1725988203213,11.41,134.96,134.91,3.7058]
[1725988203620,11.41,134.96,134.92,3.7056]
[1725988204931,11.41,134.96,134.89,11.41]
[1725988208616,1.3302,134.98,134.84,1.3243]
[1725988208921,3.74044101,134.99,134.93,11.41]
[1725988209222,11.41,135.01,134.94,11.41]
[1725988209610,12.48437423,135.02,134.95,11.41]
[1725988209816,2.7291,135.05,134.97,11.41]
[1725988210024,11.41,135.03,134.97,11.41]
[1725988210226,11.41,135.03,134.95,3.78383388]
[1725988210413,3.61809417,135.02,134.98,3.7038]
[1725988210616,3.61809417,135.02,134.96,11.41]
[1725988210815,15.02809417,135.02,134.96,11.41]
[1725988211015,15.02809417,135.02,134.97,3.7042]
[1725988211615,15.02809417,135.02,134.96,11.41]
[1725988212428,11.41,135.02,134.96,11.41]
[1725988212723,3.62241494,135.04,134.97,11.41]
[1725988212925,15.03241494,135.04,134.99,3.7035]
[1725988213326,1.3526,135.09,134.98,11.41]
[1725988213514,11.41,135.06,134.95,3.78383388]
[1725988213715,11.41,135.06,135.0,11.41]
[1725988214125,11.41,135.06,135.02,3.7028]
[1725988214327,4.97723864,135.09,135.0,11.41]
[1725988214624,11.41,135.06,135.0,11.41]
[1725988214928,4.97723864,135.09,135.0,11.41]
[1725988215219,15.03463864,135.09,135.03,11.41]
[1725988215424,11.41,135.09,135.03,11.41]
[1725988215925,15.03023816,135.09,135.03,11.41]
[1725988216326,11.41,135.09,135.01,2.616]
[1725988216522,11.41,135.07,135.01,2.616]
[1725988216821,11.41,135.04,134.98,11.41]
[1725988217023,11.41,135.04,134.9,4.1194]
[1725988217229,11.41,135.04,134.99,11.41]
[1725988218631,3.7023,135.05,134.97,17.78]
[1725988218929,3.7023,135.05,134.97,21.8994]
[1725988219128,3.702,135.06,134.98,3.74583178]
[1725988219335,17.78,135.07,134.98,3.74583178]
[1725988219536,3.7012,135.09,135.01,17.78]
[1725988219834,7.425,135.11,135.01,17.78]
[1725988220230,3.7013,135.08,135.01,17.78]
[1725988220731,3.7015,135.08,135.01,17.78]
[1725988221528,3.7015,135.08,135.02,1.2755]
[1725988221839,7.425,135.1,135.02,1.2755]
[1725988222332,3.7014,135.08,135.02,1.2755]
[1725988222931,172.07174926,135.18,135.05,17.78]
[1725988223134,5.01281564,135.17,135.05,17.78]
[1725988223332,1.11771564,135.16,135.08,3.7011]
[1725988223538,1.11771564,135.16,135.05,17.78]
[1725988223831,17.78,135.13,135.04,17.78]
[1725988224533,7.67630293,135.17,135.04,17.78]
[1725988224534,17.78,135.15,135.04,17.78]
[1725988225535,17.78,135.15,135.06,17.78]
[1725988227638,3.701,135.09,135.04,17.78]
[1725988227831,3.701,135.09,135.03,2.6521]
[1725988228034,3.7519443,135.09,135.03,2.6521]
[1725988228335,3.7018,135.07,135.03,1.3078]
[1725988229127,3.75861047,135.09,135.03,1.3078]
[1725988229331,26.6006,135.11,135.03,1.3078]
[1725988229728,7.425,135.11,135.03,1.3078]
[1725988230330,3.7014,135.08,135.03,1.3078]
[1725988231131,8.7199,135.12,135.03,1.3078]
[1725988231330,1.3956,135.16,135.07,17.78]
[1725988232233,8.8206,135.16,135.1,3.7005]
[1725988232739,8.8206,135.16,135.07,17.78]
[1725988233038,1.3956,135.16,135.13,3.6999]
[1725988233426,3.66212312,135.17,135.08,1.298]
[1725988233634,17.78,135.19,135.09,1.2673]
[1725988233832,21.5284258,135.19,135.09,1.2673]
[1725988234029,21.5284258,135.19,135.13,3.6999]
[1725988234540,21.5284258,135.19,135.14,3.6996]
[1725988235134,21.5284258,135.19,135.09,20.4338]
[1725988235328,21.5284258,135.19,135.09,2.6538]
[1725988236338,21.5284258,135.19,135.11,3.7004]
[1725988237037,21.5284258,135.19,135.1,3.7006]
[1725988237245,17.78,135.17,135.1,3.7006]
[1725988238738,2.6824,135.16,135.11,3.7004]
[1725988239146,2.6824,135.16,135.08,1.298]
[1725988239542,3.7484258,135.19,135.09,17.78]
[1725988239736,27.8874,135.2,135.09,19.1091]
[1725988240148,3.68234183,135.19,135.12,17.78]
[1725988240548,3.68234183,135.19,135.14,3.6995]
[1725988240846,10.1074,135.2,135.12,17.78]
[1725988241148,27.8874,135.2,135.12,3.7]
[1725988241548,3.70030354,135.19,135.11,17.78]
[1725988241839,3.70030354,135.19,135.13,3.6998]
[1725988242043,3.70030354,135.19,135.11,17.78]
[1725988242242,27.8874,135.2,135.11,17.78]
[1725988242243,27.8874,135.2,135.13,3.6997]
[1725988242443,27.8874,135.2,135.11,17.78]
[1725988242650,31.50034143,135.2,135.11,17.78]
[1725988242847,31.50034143,135.2,135.14,3.6996]
[1725988243036,31.50034143,135.2,135.11,17.78]
[1725988243037,13.72034143,135.2,135.11,17.78]
[1725988243451,13.72034143,135.2,135.14,3.6994]
[1725988243841,13.72034143,135.2,135.15,3.6992]
[1725988244044,13.72034143,135.2,135.13,17.78]
[1725988244246,7.425,135.24,135.15,17.78]
[1725988244551,7.425,135.21,135.15,17.78]
[1725988245247,7.425,135.27,135.1,7.4015]
[1725988245446,8.7096,135.24,135.15,17.78]
[1725988245657,8.7096,135.24,135.09,1.3291]
[1725988245658,7.425,135.22,135.13,17.78]
[1725988245846,2.759,135.21,135.13,17.78]
[1725988246146,2.759,135.21,135.14,3.6996]
[1725988246651,10.184,135.21,135.14,3.6996]
[1725988247549,17.78,135.2,135.13,3.6998]
[1725988247946,27.964,135.21,135.09,19.1091]
[1725988248348,27.964,135.21,135.12,17.78]
[1725988249048,27.964,135.21,135.09,1.3291]
[1725988249246,27.964,135.21,135.11,17.78]
[1725988250852,27.964,135.21,135.09,1.3291]
[1725988251057,17.78,135.19,135.09,19.1091]
[1725988252359,17.78,135.19,135.11,17.78]
[1725988252660,3.6988,135.18,135.11,17.78]
[1725988252956,27.964,135.21,135.11,17.78]
[1725988253461,3.6987,135.18,135.11,17.78]
[1725988253752,27.964,135.21,135.13,17.78]
[1725988253753,7.425,135.21,135.13,17.78]
[1725988253951,3.6986,135.18,135.13,17.78]
[1725988254153,7.425,135.21,135.13,17.78]
[1725988254857,3.6987,135.18,135.13,17.78]
[1725988255256,3.6989,135.17,135.13,17.78]
[1725988255660,7.425,135.21,135.09,1.3291]
[1725988255661,7.425,135.21,135.11,17.78]
[1725988255955,3.6993,135.16,135.11,17.78]
[1725988257051,3.6987,135.18,135.13,17.78]
[1725988257251,7.425,135.21,135.13,17.78]
[1725988257761,3.6984,135.19,135.13,17.78]
[1725988258455,3.6986,135.18,135.13,17.78]
[1725988258651,7.425,135.21,135.13,17.78]
[1725988259057,7.425,135.21,135.14,1.3929]
[1725988259560,7.425,135.23,135.14,1.3929]
[1725988259756,7.425,135.23,135.15,17.78]
[1725988260057,7.425,135.23,135.15,20.5016]
[1725988260260,3.6979,135.21,135.15,20.5016]
[1725988260655,7.425,135.25,135.19,17.78]
[1725988260849,3.8621,135.33,135.21,17.78]
[1725988261055,17.78,135.31,135.21,17.78]
[1725988261254,17.78,135.31,135.19,17.78]
[1725988261459,17.78,135.31,135.2,1.3517]
[1725988261655,7.5746293,135.33,135.2,1.3517]
[1725988261851,7.5746293,135.33,135.21,20.5016]
[1725988262051,3.8621,135.33,135.23,17.78]
[1725988262348,3.6957,135.29,135.21,20.5016]
[1725988262756,7.425,135.31,135.21,20.5016]
[1725988263161,7.425,135.32,135.21,2.7216]
[1725988263463,7.425,135.32,135.22,17.78]
[1725988263464,25.205,135.32,135.22,17.78]
[1725988263758,17.78,135.3,135.22,17.78]
[1725988264759,25.205,135.3,135.22,17.78]
[1725988265869,3.6963,135.27,135.22,17.78]
[1725988266165,7.425,135.32,135.24,17.78]
[1725988266667,3.6957,135.29,135.24,17.78]
[1725988267065,3.6958,135.28,135.24,17.78]
[1725988267366,1.2847,135.37,135.24,17.78]
[1725988267367,7.425,135.37,135.24,17.78]
[1725988267558,25.205,135.37,135.26,17.78]
[1725988267867,25.205,135.37,135.27,1.3536]
[1725988268062,3.77940523,135.36,135.27,4.0321]
[1725988268270,25.205,135.37,135.27,4.0321]
[1725988268563,7.425,135.37,135.29,17.78]
[1725988268765,17.78,135.36,135.27,21.8121]
[1725988269160,3.6947,135.32,135.27,21.8121]
[1725988269366,17.78,135.36,135.27,21.8121]
[1725988269767,3.6947,135.33,135.27,21.8121]
[1725988270263,7.425,135.37,135.3,17.78]
[1725988270673,7.425,135.4,135.3,17.78]
[1725988270863,3.6936,135.37,135.3,17.78]
[1725988271267,7.425,135.4,135.3,17.78]
[1725988271468,17.78,135.39,135.28,17.78]
[1725988271668,7.425,135.43,135.33,17.78]
[1725988271958,7.425,135.43,135.34,3.9042]
[1725988272165,7.425,135.43,135.37,17.78]
[1725988272359,3.63408256,135.47,135.37,17.78]
[1725988272858,17.78,135.49,135.37,17.78]
[1725988273062,3.6913,135.45,135.37,17.78]
[1725988273262,7.425,135.48,135.4,17.78]
[1725988273463,7.425,135.48,135.41,2.6266]
[1725988274059,3.6916,135.44,135.41,2.6266]
[1725988274258,17.78,135.49,135.41,2.6266]
[1725988274259,7.425,135.49,135.41,2.6266]
[1725988274864,3.6907,135.47,135.41,2.6266]
[1725988275374,17.78,135.52,135.42,17.78]
[1725988275871,7.425,135.51,135.43,1.2734]
[1725988276270,17.78,135.5,135.43,1.2734]
[1725988276569,7.425,135.53,135.41,20.4066]
[1725988276774,7.373,135.63,135.48,17.78]
[1725988276974,17.78,135.58,135.49,2.6375]
[1725988277272,17.78,135.54,135.44,17.78]
[1725988277465,22.70770954,135.63,135.44,17.78]
[1725988277668,22.70770954,135.63,135.47,17.78]
[1725988277669,15.91194847,135.62,135.47,17.78]
[1725988277867,15.33470954,135.63,135.49,17.78]
[1725988278069,15.33470954,135.63,135.51,17.78]
[1725988278070,25.40557433,135.63,135.51,17.78]
[1725988278273,35.97557433,135.63,135.5,2.6552]
[1725988278478,164.46656762,135.67,135.53,28.35]
[1725988278672,36.05628996,135.67,135.55,28.35]
[1725988278875,39.81709368,135.67,135.55,28.35]
[1725988279075,3.76080372,135.67,135.58,28.35]
[1725988279272,35.775,135.71,135.58,28.35]
[1725988279465,3.6869,135.61,135.59,2.6649]
[1725988279663,28.35,135.69,135.59,2.6649]
[1725988279877,39.44752714,135.71,135.6,28.35]
[1725988280375,39.44752714,135.71,135.59,2.6649]
[1725988280581,11.09752714,135.71,135.59,1.3221]
[1725988280879,28.35,135.68,135.59,1.3221]